[Event "24th Hoogeschool Zeeland 2022"]
[Site "Vlissingen"]
[Date "2022.08.07"]
[Round "3.18"]
[White "Zwirs, Jasper"]
[Black "Grochal, Joey"]
[Result "1-0"]
[ECO "B48"]
[WhiteElo "2105"]
[BlackElo "2290"]
[Annotator "RC"]
[PlyCount "87"]
[EventDate "2022.08.05"]
[EventType "swiss"]
[EventCountry "NED"]
[SourceTitle "playchess.com"]
[Source "ChessBase"]
[SourceQuality "1"]
[TimeControl "40/5400+30:1800+30"]

1. e4 {[%emt 0:00:06]} c5 {[%emt 0:00:08]} 2. Nf3 {[%emt 0:00:05]} e6 {[%emt 0:00:16]} 3. d4 {[%emt 0:00:06]} cxd4 {[%emt 0:00:05]} 4. Nxd4 {[%emt 0:00:04]} Nc6 {[%emt 0:00:24]} 5. Nc3 {[%emt 0:00:26]} Qc7 {[%emt 0:00:08]} 6. Be3 {[%emt 0:00:52]} a6 {[%emt 0:00:14]} 7. Qd2 {[%emt 0:00:34]} Nf6 {[%emt 0:00:28]} 8. f4 {[%emt 0:00:10]} Bb4 {[%emt 0:03:45]} 9. Bd3 {[%emt 0:00:41]} b5 {[%emt 0:07:52]} 10. a3 {[%emt 0:05:35]} Be7 {[%emt 0:02:06]} 11. h3 {[%emt 0:05:50]} Bb7 {[%emt 0:02:15]} 12. Qf2 {[%emt 0:09:52]} Na5 {[%emt 0:04:36]} 13. Nxe6 {[%emt 0:16:23]} fxe6 {[%emt 0:00:05]} 14. Bb6 {[%emt 0:00:04]} Qc6 {[%emt 0:00:17]} 15. Bxa5 {[%emt 0:00:06]} O-O {[%emt 0:00:58]} 16. O-O-O {[%emt 0:08:32]} Bc5 {[%emt 0:01:54]} 17. Qh4 {[%emt 0:03:00]} g6 {[%emt 0:01:00]} 18. Kb1 {[%emt 0:07:32]} Rae8 {[%emt 0:04:58]} 19. Rhf1 {[%emt 0:15:28]} Rf7 {[%emt 0:04:39]} 20. f5 {[%emt 0:01:42]} gxf5 {[%emt 0:00:26]} 21. e5 {[%emt 0:02:46]} Nd5 {[%emt 0:01:24]} 22. Nxd5 {[%emt 0:04:08]} Qxd5 {[%emt 0:00:06]} 23. Be2 {[%emt 0:04:18]} Qe4 {[%emt 0:04:35]} 24. Qxe4 {[%emt 0:00:34]} Bxe4 {[%emt 0:00:06]} 25. Bh5 {[%emt 0:00:06]} Bxg2 {[%emt 0:00:36]} 26. Rg1 {[%emt 0:01:14]} Bxg1 {[%emt 0:00:58]} 27. Rxg1 {[%emt 0:00:06]} Rg7 {[%emt 0:00:18]} 28. Bxe8 {[%emt 0:00:06]} Bxh3 {[%emt 0:00:54]} 29. Rxg7+ {[%emt 0:00:21]} Kxg7 {[%emt 0:00:07]} 30. Bxd7 {[%emt 0:00:12]} f4 {[%emt 0:00:05]} 31. Kc1 {[%emt 0:06:22]} Kg6 {[%emt 0:00:59]} 32. Bc8 {[%emt 0:03:18]} Bg2 {[%emt 0:01:01]} 33. Bxe6 {[%emt 0:00:23]} h5 {[%emt 0:00:08]} 34. Kd1 {[%emt 0:02:30]} h4 {[%emt 0:01:10]} 35. Bb6 {[%emt 0:00:56]} h3 {[%emt 0:01:19]} 36. Bg1 {[%emt 0:00:06]} Bf3+ {[%emt 0:00:59]} 37. Ke1 {[%emt 0:00:13]} Be4 {[%emt 0:00:04]} 38. c3 {[%emt 0:02:17]} Bf5 {[%emt 0:00:04]} 39. Bxf5+ {[%emt 0:01:50]} Kxf5 {[%emt 0:00:01]} 40. Kf2 {[%emt 0:00:41]} Kxe5 {[%emt 0:00:06]} 41. Bh2 {[%emt 0:15:38]} Ke4 {[%emt 0:00:39]} 42. b4 {[%emt 0:02:38]} Kd3 {[%emt 0:00:16]} 43. Bxf4 {[%emt 0:00:07]} Kxc3 {[%emt 0:00:05]} 44. Bc7 {[%emt 0:00:07]} 1-0

[Event "24th Hoogeschool Zeeland 2022"]
[Site "Vlissingen"]
[Date "2022.08.07"]
[Round "3.19"]
[White "Bezemer, Arno"]
[Black "Lacrosse, Marc"]
[Result "1/2-1/2"]
[ECO "C54"]
[WhiteElo "2278"]
[BlackElo "2003"]
[Annotator "RC"]
[PlyCount "43"]
[EventDate "2022.08.05"]
[EventType "swiss"]
[EventCountry "NED"]
[SourceTitle "playchess.com"]
[Source "ChessBase"]
[SourceQuality "1"]
[TimeControl "40/5400+30:1800+30"]

1. e4 {[%emt 0:01:04]} e5 {[%emt 0:01:24]} 2. Nf3 {[%emt 0:00:10]} Nc6 {[%emt 0:00:19]} 3. Bc4 {[%emt 0:01:13]} Bc5 {[%emt 0:00:37]} 4. c3 {[%emt 0:00:10]} Nf6 {[%emt 0:00:57]} 5. d4 {[%emt 0:00:17]} exd4 {[%emt 0:00:59]} 6. cxd4 {[%emt 0:00:05]} Bb4+ {[%emt 0:00:22]} 7. Nbd2 {[%emt 0:00:27]} Nxe4 {[%emt 0:10:58]} 8. d5 {[%emt 0:00:45]} Nxd2 {[%emt 0:06:37]} 9. Bxd2 {[%emt 0:01:36]} Bxd2+ {[%emt 0:02:35]} 10. Qxd2 {[%emt 0:00:21]} Ne7 {[%emt 0:02:27]} 11. d6 {[%emt 0:01:25]} cxd6 {[%emt 0:01:07]} 12. O-O {[%emt 0:04:09]} O-O {[%emt 0:10:27]} 13. Bd5 {[%emt 0:15:19]} Rb8 {[%emt 0:16:07]} 14. Ng5 {[%emt 0:12:25]} Nxd5 {[%emt 0:15:50]} 15. Qxd5 {[%emt 0:00:39]} b5 {[%emt 0:01:41]} 16. Qf5 {[%emt 0:10:27]} g6 {[%emt 0:01:11]} 17. Qf4 {[%emt 0:00:15]} Bb7 {[%emt 0:09:50]} 18. Rad1 {[%emt 0:02:54]} f6 {[%emt 0:04:32]} 19. Nh3 {[%emt 0:05:18]} d5 {[%emt 0:01:33]} 20. Rfe1 {[%emt 0:00:36]} Rc8 {[%emt 0:02:18]} 21. Qd4 {[%emt 0:08:55]} Qa5 {[%emt 0:03:59]} 22. a3 {[%emt 0:06:41]} 1/2-1/2

[Event "24th Hoogeschool Zeeland 2022"]
[Site "Vlissingen"]
[Date "2022.08.07"]
[Round "3.20"]
[White "Stillger, Bernhard"]
[Black "Galle, Andre"]
[Result "1-0"]
[ECO "A30"]
[WhiteElo "2245"]
[BlackElo "1999"]
[Annotator "RC"]
[PlyCount "71"]
[EventDate "2022.08.05"]
[EventType "swiss"]
[EventCountry "NED"]
[SourceTitle "playchess.com"]
[Source "ChessBase"]
[SourceQuality "1"]
[TimeControl "40/5400+30:1800+30"]

1. Nf3 {[%emt 0:00:05]} Nf6 {[%emt 0:00:46]} 2. g3 {[%emt 0:00:21]} b6 {[%emt 0:00:25]} 3. Bg2 {[%emt 0:00:17]} Bb7 {[%emt 0:00:06]} 4. c4 {[%emt 0:00:12]} c5 {[%emt 0:00:07]} 5. O-O {[%emt 0:00:19]} e6 {[%emt 0:00:31]} 6. Nc3 {[%emt 0:00:09]} d6 {[%emt 0:01:12]} 7. b3 {[%emt 0:00:36]} Nbd7 {[%emt 0:00:48]} 8. Bb2 {[%emt 0:01:25]} Be7 {[%emt 0:00:15]} 9. e3 {[%emt 0:01:06]} O-O {[%emt 0:01:38]} 10. d4 {[%emt 0:00:07]} Ne4 {[%emt 0:09:17]} 11. Qc2 {[%emt 0:08:27]} Nxc3 {[%emt 0:05:25]} 12. Bxc3 {[%emt 0:02:59]} cxd4 {[%emt 0:09:34]} 13. Nxd4 {[%emt 0:02:58]} Bxg2 {[%emt 0:01:55]} 14. Kxg2 {[%emt 0:00:02]} Rc8 {[%emt 0:02:26]} 15. Rac1 {[%emt 0:10:16]} a6 {[%emt 0:07:41]} 16. Qe2 {[%emt 0:04:22]} Qc7 {[%emt 0:10:17]} 17. f4 {[%emt 0:08:20]} Rfe8 {[%emt 0:14:40]} 18. Qf3 {[%emt 0:04:22]} g6 {[%emt 0:07:24]} 19. g4 {[%emt 0:06:08]} Bf8 {[%emt 0:03:02]} 20. g5 {[%emt 0:04:56]} Bg7 {[%emt 0:07:26]} 21. Ne2 {[%emt 0:03:35]} e5 {[%emt 0:04:29]} 22. Ng3 {[%emt 0:07:53]} Nc5 {[%emt 0:03:30]} 23. Qd5 {[%emt 0:03:30]} Re6 {[%emt 0:03:24]} 24. f5 {[%emt 0:02:30]} gxf5 {[%emt 0:01:20]} 25. Rxf5 {[%emt 0:01:11]} Rce8 {[%emt 0:01:02]} 26. Rcf1 {[%emt 0:03:50]} R8e7 {[%emt 0:00:36]} 27. Bb4 {[%emt 0:04:06]} Nb7 {[%emt 0:00:55]} 28. Rxf7 {[%emt 0:01:58]} Nd8 {[%emt 0:00:36]} 29. R7f2 {[%emt 0:02:09]} Kh8 {[%emt 0:01:30]} 30. Ne4 {[%emt 0:02:53]} Nb7 {[%emt 0:01:19]} 31. h4 {[%emt 0:02:05]} a5 {[%emt 0:00:47]} 32. Ba3 {[%emt 0:00:40]} h6 {[%emt 0:00:51]} 33. Kg3 {[%emt 0:06:26]} Nc5 {[%emt 0:00:28]} 34. Bxc5 {[%emt 0:00:46]} dxc5 {[%emt 0:00:06]} 35. Rd1 {[%emt 0:00:47]} Kh7 {[%emt 0:00:44]} 36. h5 {[%emt 0:00:23]} 1-0

[Event "24th Hoogeschool Zeeland 2022"]
[Site "Vlissingen"]
[Date "2022.08.08"]
[Round "3.21"]
[White "Ackermann, Frank"]
[Black "Van der Kaap, Jos"]
[Result "1/2-1/2"]
[ECO "B01"]
[WhiteElo "2012"]
[BlackElo "2187"]
[Annotator "RC"]
[PlyCount "46"]
[EventDate "2022.08.05"]
[EventType "swiss"]
[EventCountry "NED"]
[SourceTitle "playchess.com"]
[Source "ChessBase"]
[SourceQuality "1"]
[TimeControl "40/5400+30:1800+30"]

1. e4 {[%emt 0:00:04]} d5 {[%emt 0:00:13]} 2. exd5 {[%emt 0:00:10]} Qxd5 {[%emt 0:00:14]} 3. Nc3 {[%emt 0:00:14]} Qa5 {[%emt 0:00:14]} 4. d4 {[%emt 0:00:16]} Nf6 {[%emt 0:00:17]} 5. Nf3 {[%emt 0:00:55]} Bf5 {[%emt 0:00:17]} 6. Bc4 {[%emt 0:03:05]} e6 {[%emt 0:00:18]} 7. Bd2 {[%emt 0:01:51]} Bb4 {[%emt 0:01:06]} 8. a3 {[%emt 0:01:52]} Bxc3 {[%emt 0:00:16]} 9. Bxc3 {[%emt 0:00:54]} Qb6 {[%emt 0:00:14]} 10. b4 {[%emt 0:13:57]} Bg4 {[%emt 0:00:51]} 11. Be2 {[%emt 0:22:43]} Nc6 {[%emt 0:08:43]} 12. b5 {[%emt 0:08:43]} Bxf3 {[%emt 0:03:16]} 13. gxf3 {[%emt 0:03:14]} Nd5 {[%emt 0:14:15]} 14. Bb2 {[%emt 0:11:39]} Nce7 {[%emt 1:07:16]} 15. Qd2 {[%emt 0:03:15]} Qd6 {[%emt 0:00:00]} 16. c4 {[%emt 0:03:19]} Nf6 {[%emt 0:00:00]} 17. a4 {[%emt 0:04:39]} Nf5 {[%emt 0:00:00]} 18. Qc3 {[%emt 0:09:25]} Qf4 {[%emt 0:00:00]} 19. Rd1 {[%emt 0:01:02]} O-O {[%emt 0:00:00]} 20. h4 {[%emt 0:02:19]} Rfd8 {[%emt 0:00:00]} 21. Bc1 {[%emt 0:00:31]} Qd6 {[%emt 0:00:00]} 22. Ba3 {[%emt 0:00:19]} Qf4 {[%emt 0:00:00]} 23. Bc1 {[%emt 0:00:06]} Qd6 {[%emt 0:00:00]} 1/2-1/2

[Event "24th Hoogeschool Zeeland 2022"]
[Site "Vlissingen"]
[Date "2022.08.07"]
[Round "3.22"]
[White "Honkoop, Gilian"]
[Black "Verwoert, Jef"]
[Result "1-0"]
[ECO "A43"]
[WhiteElo "2205"]
[BlackElo "1998"]
[Annotator "RC"]
[PlyCount "49"]
[EventDate "2022.08.05"]
[EventType "swiss"]
[EventCountry "NED"]
[SourceTitle "playchess.com"]
[Source "ChessBase"]
[SourceQuality "1"]
[TimeControl "40/5400+30:1800+30"]

1. d4 {[%emt 0:00:05]} c5 {[%emt 0:00:24]} 2. dxc5 {[%emt 0:02:35]} e6 {[%emt 0:00:12]} 3. Nc3 {[%emt 0:00:02]} Bxc5 {[%emt 0:00:37]} 4. Ne4 {[%emt 0:00:08]} Nf6 {[%emt 0:10:29]} 5. Nxc5 {[%emt 0:00:05]} Qa5+ {[%emt 0:00:06]} 6. c3 {[%emt 0:00:10]} Qxc5 {[%emt 0:00:05]} 7. g3 {[%emt 0:00:11]} d5 {[%emt 0:01:20]} 8. Bg2 {[%emt 0:00:06]} O-O {[%emt 0:01:56]} 9. Nf3 {[%emt 0:00:10]} Nc6 {[%emt 0:03:31]} 10. O-O {[%emt 0:03:35]} e5 {[%emt 0:10:01]} 11. Bg5 {[%emt 0:04:55]} Ne4 {[%emt 0:04:12]} 12. Be3 {[%emt 0:00:11]} Qd6 {[%emt 0:01:11]} 13. c4 {[%emt 0:09:48]} dxc4 {[%emt 0:11:15]} 14. Qxd6 {[%emt 0:03:15]} Nxd6 {[%emt 0:00:44]} 15. Bc5 {[%emt 0:00:03]} Nf5 {[%emt 0:10:48]} 16. Bxf8 {[%emt 0:02:00]} Kxf8 {[%emt 0:00:05]} 17. Rfc1 {[%emt 0:06:28]} Na5 {[%emt 0:00:58]} 18. Nxe5 {[%emt 0:05:40]} Be6 {[%emt 0:05:02]} 19. Nf3 {[%emt 0:02:45]} f6 {[%emt 0:02:20]} 20. e4 {[%emt 0:01:04]} Ne7 {[%emt 0:03:21]} 21. Nd4 {[%emt 0:08:44]} Bd7 {[%emt 0:00:18]} 22. Bf1 {[%emt 0:02:07]} b5 {[%emt 0:00:51]} 23. b4 {[%emt 0:05:23]} Nec6 {[%emt 0:07:00]} 24. Nxb5 {[%emt 0:02:33]} Nxb4 {[%emt 0:00:09]} 25. Nd6 {[%emt 0:40:57]} 1-0

[Event "24th Hoogeschool Zeeland 2022"]
[Site "Vlissingen"]
[Date "2022.08.07"]
[Round "3.23"]
[White "Koffeman, Timo"]
[Black "De Zwart, Johan"]
[Result "1-0"]
[ECO "C83"]
[WhiteElo "2119"]
[BlackElo "1970"]
[Annotator "RC"]
[PlyCount "59"]
[EventDate "2022.08.05"]
[EventType "swiss"]
[EventCountry "NED"]
[SourceTitle "playchess.com"]
[Source "ChessBase"]
[SourceQuality "1"]
[TimeControl "40/5400+30:1800+30"]

1. e4 {[%emt 0:00:06]} e5 {[%emt 0:00:05]} 2. Nf3 {[%emt 0:00:07]} Nc6 {[%emt 0:00:07]} 3. Bb5 {[%emt 0:00:11]} a6 {[%emt 0:00:05]} 4. Ba4 {[%emt 0:00:06]} Nf6 {[%emt 0:00:05]} 5. O-O {[%emt 0:02:27]} Nxe4 {[%emt 0:00:06]} 6. d4 {[%emt 0:02:15]} b5 {[%emt 0:00:08]} 7. Bb3 {[%emt 0:00:07]} d5 {[%emt 0:00:07]} 8. dxe5 {[%emt 0:04:14]} Be6 {[%emt 0:00:09]} 9. c3 {[%emt 0:10:35]} Be7 {[%emt 0:01:58]} 10. Qe2 {[%emt 0:04:26]} O-O {[%emt 0:03:04]} 11. Nbd2 {[%emt 0:05:22]} Nxd2 {[%emt 0:12:25]} 12. Bxd2 {[%emt 0:05:17]} Na5 {[%emt 0:04:30]} 13. Bc2 {[%emt 0:04:12]} Nc4 {[%emt 0:00:35]} 14. Bc1 {[%emt 0:03:46]} g6 {[%emt 0:06:43]} 15. Nd4 {[%emt 0:07:19]} Qd7 {[%emt 0:02:27]} 16. Bh6 {[%emt 0:06:33]} Rfe8 {[%emt 0:00:22]} 17. f4 {[%emt 0:00:35]} c5 {[%emt 0:03:34]} 18. f5 {[%emt 0:00:54]} cxd4 {[%emt 0:02:39]} 19. fxe6 {[%emt 0:00:20]} Qxe6 {[%emt 0:01:44]} 20. cxd4 {[%emt 0:00:30]} Nxb2 {[%emt 0:02:28]} 21. Rab1 {[%emt 0:01:27]} Nc4 {[%emt 0:00:44]} 22. Rb3 {[%emt 0:00:29]} Bf8 {[%emt 0:16:25]} 23. Bxf8 {[%emt 0:04:17]} Rxf8 {[%emt 0:02:08]} 24. Rf6 {[%emt 0:01:39]} Qd7 {[%emt 0:01:10]} 25. Rh3 {[%emt 0:02:58]} Ra7 {[%emt 0:05:52]} 26. Qf3 {[%emt 0:03:53]} Nd2 {[%emt 0:05:40]} 27. Qf4 {[%emt 0:00:31]} Ne4 {[%emt 0:01:19]} 28. Qh6 {[%emt 0:00:19]} Nxf6 {[%emt 0:00:06]} 29. exf6 {[%emt 0:00:05]} Qxh3 {[%emt 0:01:33]} 30. Qg7# {[%emt 0:00:06]} 1-0

[Event "24th Hoogeschool Zeeland 2022"]
[Site "Vlissingen"]
[Date "2022.08.07"]
[Round "3.24"]
[White "Gosman, Theo"]
[Black "Lohr, Maximilian"]
[Result "0-1"]
[ECO "D00"]
[WhiteElo "1997"]
[BlackElo "2092"]
[Annotator "RC"]
[PlyCount "52"]
[EventDate "2022.08.05"]
[EventType "swiss"]
[EventCountry "NED"]
[SourceTitle "playchess.com"]
[Source "ChessBase"]
[SourceQuality "1"]
[TimeControl "40/5400+30:1800+30"]

1. d4 {[%emt 0:00:30]} Nf6 {[%emt 0:15:20]} 2. Nc3 {[%emt 0:00:13]} d5 {[%emt 0:00:24]} 3. e4 {[%emt 0:00:09]} dxe4 {[%emt 0:00:20]} 4. Bg5 {[%emt 0:00:20]} Bf5 {[%emt 0:01:32]} 5. f3 {[%emt 0:00:21]} exf3 {[%emt 0:02:32]} 6. Qxf3 {[%emt 0:00:11]} Qc8 {[%emt 0:00:15]} 7. Bc4 {[%emt 0:01:37]} e6 {[%emt 0:06:03]} 8. Bxf6 {[%emt 0:03:41]} gxf6 {[%emt 0:00:06]} 9. O-O-O {[%emt 0:10:54]} Rg8 {[%emt 0:01:46]} 10. h3 {[%emt 0:07:03]} Nd7 {[%emt 0:02:34]} 11. Re1 {[%emt 0:14:02]} Be7 {[%emt 0:00:31]} 12. g4 {[%emt 0:05:19]} Bg6 {[%emt 0:00:22]} 13. h4 {[%emt 0:01:01]} h6 {[%emt 0:04:50]} 14. Nh3 {[%emt 0:07:56]} c6 {[%emt 0:01:10]} 15. Nf4 {[%emt 0:01:37]} Qc7 {[%emt 0:05:09]} 16. d5 {[%emt 0:18:14]} cxd5 {[%emt 0:18:34]} 17. Nfxd5 {[%emt 0:08:04]} Qxc4 {[%emt 0:01:24]} 18. Nxe7 {[%emt 0:01:44]} Kxe7 {[%emt 0:01:50]} 19. Rh2 {[%emt 0:08:34]} Qc6 {[%emt 0:05:00]} 20. Qf4 {[%emt 0:02:00]} Qd6 {[%emt 0:04:21]} 21. Qf2 {[%emt 0:00:20]} Ne5 {[%emt 0:00:27]} 22. Rd1 {[%emt 0:03:23]} Qc6 {[%emt 0:00:43]} 23. Qf4 {[%emt 0:01:32]} Rad8 {[%emt 0:04:03]} 24. Rhd2 {[%emt 0:00:17]} Rxd2 {[%emt 0:00:11]} 25. Rxd2 {[%emt 0:00:13]} Nc4 {[%emt 0:00:39]} 26. Rd4 {[%emt 0:01:51]} e5 {[%emt 0:00:31]} 0-1